lending/lending_fUSD_20240721
["ID","MTS","AMOUNT","RATE_DAILY","PERIOD"]
[332836364,1721562476958,-500.0,0.00044657,60]
[332836365,1721562476991,-500.0,0.00044657,60]
[332836366,1721562477026,-500.0,0.00044657,60]
[332836367,1721562477061,-559.12,0.00044657,60]
[332836368,1721562477098,-500.0,0.00044657,60]
[332836369,1721562477131,-500.0,0.00044657,60]
[332836370,1721562477164,-500.0,0.00044657,60]
[332836371,1721562477198,-1019.57,0.00044657,60]
[332836372,1721562477231,-500.0,0.00044657,60]
[332836373,1721562477265,-500.0,0.00044657,60]
[332836374,1721562477300,-706.48,0.00044657,60]
[332836375,1721562477331,-502.74229225,0.00044657,60]
[332836376,1721562477362,-1210.27,0.00044657,60]
[332836377,1721562477393,-502.65532779,0.00044657,60]
[332836378,1721562477424,-500.0,0.00044657,60]
[332836379,1721562477455,-591.17,0.00044657,60]
[332836380,1721562477487,-500.0,0.00044657,60]
[332836381,1721562477519,-500.0,0.00044657,60]
[332836382,1721562477551,-1432.29,0.00044657,60]
[332836383,1721562477582,-1330.89,0.00044657,60]
[332836384,1721562477614,-500.0,0.00044657,60]
[332836385,1721562477645,-500.0,0.00044657,60]
[332836386,1721562477679,-500.0,0.00044657,60]
[332836387,1721562477711,-988.83,0.00044657,60]
[332836388,1721562477745,-1360.2,0.00044657,60]
[332836389,1721562477776,-1961.99,0.00044657,60]
[332836390,1721562477809,-1175.39,0.00044657,60]
[332836391,1721562477841,-500.0,0.00044657,60]
[332836392,1721562477873,-500.0,0.00044657,60]
[332836393,1721562477905,-500.0,0.00044657,60]
[332836394,1721562477940,-500.0,0.00044657,60]
[332836395,1721562477974,-1667.31,0.00044657,60]
[332836396,1721562478007,-1087.26,0.00044657,60]
[332836397,1721562478042,-626.11,0.00044657,60]
[332836398,1721562478075,-500.0,0.00044657,60]
[332836399,1721562478107,-1384.47,0.00044657,60]
[332836400,1721562478141,-1168.18,0.00044657,60]
[332836401,1721562478174,-1041.33,0.00044657,60]
[332836402,1721562478206,-500.0,0.00044657,60]
[332836403,1721562478239,-1364.5,0.00044657,60]
[332836404,1721562478273,-500.0,0.00044657,60]
[332836405,1721562478303,-500.0,0.00044657,60]
[332836406,1721562478337,-500.0,0.00044657,60]
[332836407,1721562478370,-2000.0,0.00044657,30]
[332836408,1721562478404,-500.0,0.00044657,60]
[332836409,1721562478437,-1043.6,0.00044657,60]
[332836410,1721562478469,-562.21,0.00044657,60]
[332836411,1721562478502,-500.0,0.00044657,60]
[332836412,1721562478535,-500.0,0.00044657,60]
[332836413,1721562478570,-1662.91,0.00044657,60]
[332836414,1721562478604,-500.0,0.00044657,60]
[332836415,1721562478637,-828.34,0.00044657,60]
[332836416,1721562478668,-768.8,0.00044657,60]
[332836417,1721562478700,-285.6980651,0.00044657,60]
[332836418,1721562478733,-500.0,0.00044657,60]
[332836419,1721562478768,-699.02,0.00044657,60]
[332836420,1721562478803,-500.0,0.00044657,60]
[332836421,1721562478836,-500.0,0.00044657,60]
[332836422,1721562478870,-694.74,0.00044657,60]
[332836423,1721562478903,-500.0,0.00044657,60]
[332836424,1721562478938,-500.0,0.00044657,60]
[332836425,1721562478971,-500.0,0.00044657,60]
[332836426,1721562479006,-500.0,0.00044657,60]
[332836427,1721562479047,-500.0,0.00044657,60]
[332836428,1721562479084,-802.38,0.00044657,60]
[332836429,1721562479121,-500.0,0.00044657,60]
[332836430,1721562479155,-546.0,0.00044657,60]
[332836431,1721562479189,-1262.18,0.00044657,60]
[332836432,1721562479224,-1932.95,0.00044657,60]
[332836433,1721562479259,-911.09,0.00044657,60]
[332836434,1721562479293,-500.0,0.00044657,60]
[332836435,1721562479327,-500.0,0.00044657,60]
[332836436,1721562479360,-1154.95,0.00044657,60]
[332836437,1721562479393,-500.0,0.00044657,60]
[332836438,1721562479427,-1956.26,0.00044657,60]
[332836439,1721562479461,-500.0,0.00044657,60]
[332836440,1721562479496,-500.0,0.00044657,60]
[332836441,1721562479530,-500.0,0.00044657,60]
[332836442,1721562479564,-916.91,0.00044657,60]
[332836443,1721562479597,-500.0,0.00044657,60]
[332836444,1721562479631,-500.0,0.00044657,60]
[332836445,1721562479664,-500.0,0.00044657,60]
[332836446,1721562479696,-1923.27,0.00044657,60]
[332836447,1721562479730,-1208.28,0.00044657,60]
[332836448,1721562479763,-694.37,0.00044657,60]
[332836449,1721562479995,-1666.33,0.00044657,60]
[332836450,1721562480094,-500.0,0.00044657,60]
[332836451,1721562480174,-500.0,0.00044657,60]
[332836452,1721562480233,-500.0,0.00044657,60]
[332836453,1721562480275,-500.0,0.00044657,60]
[332836454,1721562480314,-500.0,0.00044657,60]
[332836455,1721562480352,-605.85,0.00044657,60]
[332836456,1721562480392,-500.0,0.00044657,60]
[332836457,1721562480429,-500.0,0.00044657,60]
[332836458,1721562480466,-500.0,0.00044657,60]
[332836459,1721562480502,-1000.0,0.00044657,60]
[332836460,1721562480538,-1044.79,0.00044657,60]
[332836461,1721562480574,-500.0,0.00044657,60]
[332836462,1721562480610,-500.0,0.00044657,60]
[332836463,1721562480648,-1993.49,0.00044657,60]
[332836464,1721562480684,-2607.43,0.00044657,60]
[332836465,1721562480719,-2442.5,0.00044657,60]
[332836466,1721562480754,-500.0,0.00044657,60]
[332836467,1721562480787,-1156.27,0.00044657,60]
[332836468,1721562480821,-614.69,0.00044657,60]
[332836469,1721562480855,-857.7,0.00044657,60]
[332836470,1721562480892,-1651.31,0.00044657,60]
[332836471,1721562480931,-500.0,0.00044657,60]
[332836472,1721562480968,-500.0,0.00044657,60]
[332836473,1721562481005,-964.54,0.00044657,60]
[332836474,1721562481043,-500.0,0.00044657,60]
[332836475,1721562481079,-500.0,0.00044657,60]
[332836476,1721562481118,-1410.41,0.00044657,60]
[332836477,1721562481153,-500.0,0.00044657,60]
[332836478,1721562481188,-1976.74,0.00044657,60]
[332836479,1721562481224,-500.0,0.00044657,60]
[332836480,1721562481259,-500.0,0.00044657,60]
[332836481,1721562481293,-500.0,0.00044657,60]
[332836482,1721562481327,-500.0,0.00044657,60]
[332836483,1721562481362,-1210.42,0.00044657,60]
[332836484,1721562481396,-500.0,0.00044657,60]
[332836485,1721562481430,-1298.71,0.00044657,60]
[332836486,1721562481464,-1397.0,0.00044657,60]
[332836487,1721562481498,-2870.38,0.00044657,60]
[332836488,1721562481531,-1090.78,0.00044657,60]
[332836489,1721562481565,-500.0,0.00044657,60]
[332836490,1721562481600,-500.0,0.00044657,60]
[332836491,1721562481634,-500.0,0.00044657,60]
[332836492,1721562481668,-975.35,0.00044657,60]
[332836493,1721562481701,-500.0,0.00044657,60]
[332836494,1721562481736,-975.06,0.00044657,60]
[332836495,1721562481770,-588.03,0.00044657,60]
[332836496,1721562481804,-3219.97,0.00044657,60]
[332836497,1721562481839,-500.0,0.00044657,60]
[332836498,1721562481872,-1233.64,0.00044657,60]
[332836499,1721562481906,-506.75405512,0.00044657,60]
[332836500,1721562481942,-500.0,0.00044657,60]
[332836501,1721562481984,-4349.87,0.00044657,60]
[332836502,1721562482020,-897.27,0.00044657,60]
[332836503,1721562482056,-500.0,0.00044657,60]
[332836504,1721562482092,-500.0,0.00044657,60]
[332836505,1721562482134,-779.84,0.00044657,60]
[332836506,1721562482172,-2831.42,0.00044657,60]
[332836507,1721562482210,-500.0,0.00044657,60]
[332836508,1721562482247,-5862.38,0.00044657,21]
[332836509,1721562482282,-797.05,0.00044657,60]
[332836510,1721562482316,-1449.32,0.00044657,60]
[332836511,1721562482350,-150.0,0.00044657,60]
[332836512,1721562482385,-611.71,0.00044657,60]
[332836513,1721562482419,-644.51349077,0.00044657,60]
[332836514,1721562482454,-500.0,0.00044657,60]
[332836515,1721562482490,-2307.85,0.00044657,60]
[332836516,1721562482527,-1220.31,0.00044657,60]
[332836517,1721562482563,-1547.85,0.00044657,60]
[332836518,1721562482599,-1404.45,0.00044657,60]
[332836519,1721562482634,-500.0,0.00044657,60]
[332836520,1721562482668,-500.0,0.00044657,60]
[332836521,1721562482701,-500.0,0.00044657,60]
[332836522,1721562482734,-2145.84,0.00044657,60]
[332836523,1721562482767,-500.0,0.00044657,60]
[332836524,1721562482807,-500.0,0.00044657,60]
[332836525,1721562482840,-195.95604946,0.00044657,60]
[332836526,1721562482874,-771.19,0.00044657,60]
[332836527,1721562482907,-558.3,0.00044657,60]
[332836528,1721562482941,-2587.27,0.00044657,60]
[332836529,1721562482975,-892.89,0.00044657,60]
[332836530,1721562483010,-1698.04,0.00044657,60]
[332836531,1721562483050,-500.0,0.00044657,60]
[332836532,1721562483087,-4298.51,0.00044657,60]
[332836533,1721562483125,-1673.38,0.00044657,60]
[332836534,1721562483163,-755.63,0.00044657,60]
[332836535,1721562483201,-500.0,0.00044657,60]
[332836536,1721562483240,-500.0,0.00044657,60]
[332836537,1721562483279,-500.0,0.00044657,60]
[332836538,1721562483317,-1946.7,0.00044657,60]
[332836539,1721562483357,-500.0,0.00044657,60]
[332836540,1721562483396,-976.36,0.00044657,60]
[332836541,1721562483436,-1926.96,0.00044657,60]
[332836542,1721562483475,-500.0,0.00044657,60]
[332836543,1721562483515,-1035.15,0.00044657,60]
[332836544,1721562483554,-500.0,0.00044657,60]
[332836545,1721562483594,-1557.66,0.00044657,60]
[332836546,1721562483632,-500.0,0.00044657,60]
[332836547,1721562483671,-500.0,0.00044657,60]
[332836548,1721562483710,-334.11930862,0.00044657,60]
[332836549,1721562483749,-1158.49,0.00044657,60]
[332836550,1721562483788,-500.0,0.00044657,60]
[332836551,1721562483828,-991.73,0.00044657,60]
[332836552,1721562483866,-500.0,0.00044657,60]
[332836553,1721562483904,-500.0,0.00044657,60]
[332836554,1721562484151,-2557.51,0.00044657,60]
[332836555,1721562484189,-2269.25,0.00044657,60]
[332836556,1721562484228,-765.24,0.00044657,60]
[332836557,1721562484266,-500.0,0.00044657,60]
[332836558,1721562484303,-500.0,0.00044657,60]
[332836559,1721562484340,-500.0,0.00044657,60]
[332836560,1721562484377,-1069.04,0.00044657,60]
[332836561,1721562484414,-509.72,0.00044657,60]
[332836562,1721562484450,-1450.95,0.00044657,60]
[332836563,1721562484487,-500.0,0.00044657,60]
[332836564,1721562484523,-11013.47,0.00044657,60]
[332836565,1721562484562,-3431.18,0.00044657,60]
[332836566,1721562484598,-169580.58238821,0.00044698,120]
[332836567,1721562484634,-178.0478971,0.00044698,90]
[332836568,1721562484670,-420350.01723095,0.000448,60]
[332836569,1721562484707,-1000000.0,0.000448,120]
[332836570,1721562484744,-9577.76763825,0.000448,60]
[332836571,1721562484784,-8472.00684708,0.000448,60]
[332836572,1721562484827,-147965.20538883,0.000448,60]
[332836573,1721562484861,-253086.17310755,0.000448,60]
[332836574,1721562484895,-11390.97196302,0.000448,60]
[332836575,1721562484932,-163962.98693741,0.000448,60]
[332836576,1721562484970,-20000.0,0.000449,20]
[332836577,1721562485007,-1257.93555395,0.000449,120]
[332836578,1721562485044,-301675.86023524,0.000449,30]
[332836579,1721562485080,-2630.0,0.000449,30]
[332836580,1721562485115,-3999.999999,0.00044919,60]
[332836581,1721562485150,-500.0,0.00044931,60]
[332836582,1721562485185,-728.0,0.00044931,60]
[332836583,1721562485219,-3000.0,0.00044931,120]
[332836584,1721562485251,-500.0,0.00044931,30]
[332836585,1721562485284,-500.0,0.00044931,30]
[332836586,1721562485316,-600.0,0.00044931,30]
[332836587,1721562485347,-500.0,0.00044931,30]
[332836588,1721562485380,-500.0,0.00044931,60]
[332836589,1721562485413,-500.0,0.00044931,60]
[332836590,1721562485446,-500.0,0.00044931,60]
[332836591,1721562485479,-500.0,0.00044931,60]
[332836592,1721562485511,-500.0,0.00044931,60]
[332836593,1721562485545,-500.0,0.00044931,60]
[332836594,1721562485579,-500.0,0.00044931,60]
[332836595,1721562485611,-533.53781591,0.00044931,60]
[332836596,1721562485644,-498.67657108,0.00044931,60]
[332836597,1721562485677,-356.91469701,0.00044931,60]
[332836598,1721562485708,-500.0,0.00044931,60]
[332836599,1721562485741,-500.0,0.00044931,60]
[332836600,1721562485773,-500.0,0.00044931,60]
[332836601,1721562485805,-427.10032991,0.00044931,60]
[332836602,1721562485838,-500.0,0.00044931,60]
[332836603,1721562485870,-499.39593817,0.00044931,60]
[332836604,1721562485901,-500.0,0.00044931,60]
[332836605,1721562485936,-500.0,0.00044931,60]
[332836606,1721562485972,-500.0,0.00044931,60]
[332836607,1721562486007,-500.0,0.00044931,60]
[332836608,1721562486045,-500.0,0.00044931,60]
[332836609,1721562486078,-500.0,0.00044931,60]
[332836610,1721562486114,-500.0,0.00044931,60]
[332836611,1721562486149,-500.0,0.00044931,60]
[332836612,1721562486182,-500.0,0.00044931,60]
[332836613,1721562486216,-500.0,0.00044931,60]
[332836614,1721562486250,-500.0,0.00044931,60]
[332836615,1721562486283,-500.0,0.00044931,60]
[332836616,1721562486318,-500.0,0.00044931,60]
[332836617,1721562486352,-1049.68,0.00044931,60]
[332836618,1721562486386,-500.0,0.00044931,60]
[332836619,1721562486419,-500.0,0.00044931,60]
[332836620,1721562486451,-500.0,0.00044931,60]
[332836621,1721562486484,-500.0,0.00044931,60]
[332836622,1721562486518,-433.37356965,0.00044931,60]
[332836623,1721562486551,-500.0,0.00044931,60]
[332836624,1721562486585,-500.0,0.00044931,60]
[332836625,1721562486618,-596.0,0.00044931,60]
[332836626,1721562486651,-506.75529386,0.00044931,60]
[332836627,1721562486683,-500.0,0.00044931,60]
[332836628,1721562486715,-500.0,0.00044931,60]
[332836629,1721562486747,-519.12730007,0.00044931,60]
[332836630,1721562486780,-500.0,0.00044931,60]
[332836631,1721562486815,-500.0,0.00044931,60]
[332836632,1721562486847,-500.0,0.00044931,60]
[332836633,1721562486885,-500.0,0.00044931,60]
[332836634,1721562486918,-500.0,0.00044931,60]
[332836635,1721562486952,-500.0,0.00044931,60]
[332836636,1721562486984,-500.0,0.00044931,60]
[332836637,1721562487018,-500.0,0.00044931,60]
[332836638,1721562487052,-500.0,0.00044931,60]
[332836639,1721562487088,-500.0,0.00044931,60]
[332836640,1721562487127,-500.0,0.00044931,60]
[332836641,1721562487160,-500.0,0.00044931,60]
[332836642,1721562487194,-500.0,0.00044931,60]
[332836643,1721562487228,-500.0,0.00044931,60]
[332836644,1721562487262,-583.69,0.00044931,60]
[332836645,1721562487295,-627.21,0.00044931,60]
[332836646,1721562487330,-500.0,0.00044931,60]
[332836647,1721562487363,-500.0,0.00044931,60]
[332836648,1721562487397,-500.0,0.00044931,60]
[332836649,1721562487432,-1086.76,0.00044931,60]
[332836650,1721562487467,-500.0,0.00044931,60]
[332836651,1721562487500,-1232.08,0.00044931,60]
[332836652,1721562487533,-500.0,0.00044931,60]
[332836653,1721562487568,-906.24,0.00044931,60]
[332836654,1721562487625,-500.0,0.00044931,60]
[332836655,1721562487700,-1235.37,0.00044931,60]
[332836656,1721562487786,-500.0,0.00044931,60]
[332836657,1721562487843,-1269.86,0.00044931,60]
[332836658,1721562488083,-500.0,0.00044931,60]
[332836659,1721562488122,-504.26823782,0.00044931,60]
[332836660,1721562488156,-500.0,0.00044931,60]
[332836661,1721562488192,-200.0,0.00044931,60]
[332836662,1721562488228,-500.0,0.00044931,60]
[332836663,1721562488263,-500.0,0.00044931,60]
[332836664,1721562488297,-500.0,0.00044931,60]
[332836665,1721562488330,-500.0,0.00044931,60]
[332836666,1721562488362,-500.0,0.00044931,60]
[332836667,1721562488395,-514.86,0.00044931,60]
[332836668,1721562488429,-500.0,0.00044931,60]
[332836669,1721562488462,-573.37,0.00044931,60]
[332836670,1721562488494,-500.0,0.00044931,60]
[332836671,1721562488526,-1000.0,0.00044931,60]
[332836672,1721562488559,-500.0,0.00044931,60]
[332836673,1721562488591,-724.14,0.00044931,60]
[332836674,1721562488623,-644.44,0.00044931,60]
[332836675,1721562488654,-500.0,0.00044931,60]
[332836676,1721562488686,-500.0,0.00044931,60]
[332836677,1721562488721,-500.0,0.00044931,60]
[332836678,1721562488754,-604.49,0.00044931,60]
[332836679,1721562488788,-500.0,0.00044931,60]
[332836680,1721562488821,-556.68,0.00044931,60]
[332836681,1721562488854,-500.0,0.00044931,60]
[332836682,1721562488886,-500.0,0.00044931,60]
[332836683,1721562488920,-777.65,0.00044931,60]
[332836684,1721562488953,-761.21,0.00044931,60]
[332836685,1721562488985,-500.0,0.00044931,60]
[332836686,1721562489017,-500.0,0.00044931,60]
[332836687,1721562489051,-500.0,0.00044931,60]
[332836688,1721562489086,-1228.36,0.00044931,60]
[332836689,1721562489118,-580.68,0.00044931,60]
[332836690,1721562489150,-500.0,0.00044931,60]
[332836691,1721562489188,-500.0,0.00044931,60]
[332836692,1721562489220,-500.0,0.00044931,60]
[332836693,1721562489253,-514.90147074,0.00044931,60]
[332836694,1721562489286,-503.37423667,0.00044931,60]
[332836695,1721562489318,-500.0,0.00044931,60]
[332836696,1721562489350,-500.0,0.00044931,60]
[332836697,1721562489383,-688.11,0.00044931,60]
[332836698,1721562489415,-500.0,0.00044931,60]
[332836699,1721562489447,-1135.36,0.00044931,60]
[332836700,1721562489479,-1179.49,0.00044931,60]
[332836701,1721562489510,-500.0,0.00044931,60]
[332836702,1721562489543,-500.0,0.00044931,60]
[332836703,1721562489577,-500.0,0.00044931,60]
[332836704,1721562489609,-587.66,0.00044931,60]
[332836705,1721562489641,-945.04,0.00044931,60]
[332836706,1721562489673,-500.0,0.00044931,60]
[332836707,1721562489705,-500.0,0.00044931,60]
[332836708,1721562489739,-500.0,0.00044931,60]
[332836709,1721562489771,-500.0,0.00044931,60]
[332836710,1721562489803,-775.44,0.00044931,60]
[332836711,1721562489834,-500.0,0.00044931,60]
[332836712,1721562489864,-748.56,0.00044931,60]
[332836713,1721562489896,-500.0,0.00044931,60]
[332836714,1721562489930,-631.09,0.00044931,60]
[332836715,1721562489964,-555.58,0.00044931,60]
[332836716,1721562489997,-500.0,0.00044931,60]
[332836717,1721562490030,-774.16,0.00044931,60]
[332836718,1721562490064,-631.09,0.00044931,60]
[332836719,1721562490101,-1597.81,0.00044931,60]
[332836720,1721562490134,-500.0,0.00044931,60]
[332836721,1721562490168,-962.17,0.00044931,60]
[332836722,1721562490201,-500.0,0.00044931,60]
[332836723,1721562490234,-500.0,0.00044931,60]
[332836724,1721562490267,-500.0,0.00044931,60]
[332836725,1721562490299,-500.0,0.00044931,60]
[332836726,1721562490331,-500.0,0.00044931,60]
[332836727,1721562490362,-506.19662957,0.00044931,60]
[332836728,1721562490393,-500.0,0.00044931,60]
[332836729,1721562490426,-767.96,0.00044931,60]
[332836730,1721562490458,-500.0,0.00044931,60]
[332836731,1721562490490,-500.0,0.00044931,60]
[332836732,1721562490521,-528.85,0.00044931,60]
[332836733,1721562490552,-500.0,0.00044931,60]
[332836734,1721562490584,-500.0,0.00044931,60]
[332836735,1721562490616,-500.0,0.00044931,60]
[332836736,1721562490648,-500.0,0.00044931,60]
[332836737,1721562490683,-609.59,0.00044931,60]
[332836738,1721562490715,-500.0,0.00044931,60]
[332836739,1721562490748,-658.66,0.00044931,60]
[332836740,1721562490781,-1294.17,0.00044931,60]
[332836741,1721562490816,-918.46,0.00044931,60]
[332836742,1721562490851,-613.96,0.00044931,60]
[332836743,1721562490885,-575.24,0.00044931,60]
[332836744,1721562490922,-500.0,0.00044931,60]
[332836745,1721562490958,-744.63,0.00044931,60]
[332836746,1721562490995,-1861.87,0.00044931,60]
[332836747,1721562491031,-599.7,0.00044931,60]
[332836748,1721562491068,-500.0,0.00044931,60]
[332836749,1721562491106,-500.0,0.00044931,60]
[332836750,1721562491149,-714.25,0.00044931,60]
[332836751,1721562491186,-996.46,0.00044931,60]
[332836752,1721562491222,-500.0,0.00044931,60]
[332836753,1721562491256,-572.87994409,0.00044931,60]
[332836754,1721562491290,-500.0,0.00044931,60]
[332836755,1721562491322,-1084.78,0.00044931,60]
[332836756,1721562491354,-500.0,0.00044931,60]
[332836757,1721562491388,-2388.81,0.00044931,60]
[332836758,1721562491420,-466.09158947,0.00044931,60]
[332836759,1721562491453,-598.93,0.00044931,60]
[332836760,1721562491487,-500.0,0.00044931,60]
[332836761,1721562491534,-500.0,0.00044931,60]
[332836762,1721562491782,-1303.3,0.00044931,60]
[332836763,1721562491820,-500.0,0.00044931,60]
[332836764,1721562491854,-500.0,0.00044931,60]
[332836765,1721562491888,-788.43,0.00044931,60]
[332836766,1721562491922,-500.0,0.00044931,60]
[332836767,1721562491960,-500.0,0.00044931,60]
[332836768,1721562491996,-746.44,0.00044931,60]
[332836769,1721562492032,-1276.61,0.00044931,60]
[332836770,1721562492070,-558.18,0.00044931,60]
[332836771,1721562492107,-670.72,0.00044931,60]
[332836772,1721562492140,-542.49,0.00044931,60]
[332836773,1721562492179,-500.0,0.00044931,60]
[332836774,1721562492213,-562.88,0.00044931,60]
[332836775,1721562492248,-500.0,0.00044931,60]
[332836776,1721562492284,-500.0,0.00044931,60]
[332836777,1721562492319,-500.0,0.00044931,60]
[332836778,1721562492352,-500.0,0.00044931,60]
[332836779,1721562492385,-504.34777874,0.00044931,60]
[332836780,1721562492419,-500.0,0.00044931,60]
[332836781,1721562492452,-500.0,0.00044931,60]
[332836782,1721562492485,-504.24015704,0.00044931,60]
[332836783,1721562492519,-500.0,0.00044931,60]
[332836784,1721562492553,-592.17,0.00044931,60]
[332836785,1721562492587,-500.0,0.00044931,60]
[332836786,1721562492619,-500.0,0.00044931,60]
[332836787,1721562492651,-500.0,0.00044931,60]
[332836788,1721562492684,-500.0,0.00044931,60]
[332836789,1721562492715,-1623.76,0.00044931,60]
[332836790,1721562492748,-905.81,0.00044931,60]
[332836791,1721562492781,-503.97143575,0.00044931,60]
[332836792,1721562492813,-500.0,0.00044931,60]
[332836793,1721562492845,-500.0,0.00044931,60]
[332836794,1721562492878,-500.0,0.00044931,60]
[332836795,1721562492911,-500.0,0.00044931,60]
[332836796,1721562492944,-500.0,0.00044931,60]
[332836797,1721562492977,-500.0,0.00044931,60]
[332836798,1721562493012,-598.73,0.00044931,60]
[332836799,1721562493046,-500.0,0.00044931,60]
[332836800,1721562493084,-912.84,0.00044931,60]
[332836801,1721562493118,-500.0,0.00044931,60]
[332836802,1721562493153,-500.0,0.00044931,60]
[332836803,1721562493187,-500.0,0.00044931,60]
[332836804,1721562493220,-500.0,0.00044931,60]
[332836805,1721562493253,-500.0,0.00044931,60]
[332836806,1721562493285,-500.0,0.00044931,60]
[332836807,1721562493318,-500.0,0.00044931,60]
[332836808,1721562493350,-500.0,0.00044931,60]
[332836809,1721562493382,-500.0,0.00044931,60]
[332836810,1721562493414,-500.0,0.00044931,60]
[332836811,1721562493448,-1434.64,0.00044931,60]
[332836812,1721562493480,-691.27,0.00044931,60]
[332836813,1721562493513,-500.0,0.00044931,60]
[332836814,1721562493546,-500.0,0.00044931,60]
[332836815,1721562493578,-500.0,0.00044931,60]
[332836816,1721562493610,-500.0,0.00044931,60]
[332836817,1721562493641,-500.0,0.00044931,60]
[332836818,1721562493673,-500.0,0.00044931,60]
[332836819,1721562493706,-764.64,0.00044931,60]
[332836820,1721562493738,-545.67,0.00044931,60]
[332836821,1721562493771,-500.0,0.00044931,60]
[332836822,1721562493804,-500.0,0.00044931,60]
[332836823,1721562493836,-504.5015629,0.00044931,60]
[332836824,1721562493868,-500.0,0.00044931,60]
[332836825,1721562493900,-500.0,0.00044931,60]
[332836826,1721562493932,-548.74,0.00044931,60]
[332836827,1721562493964,-500.0,0.00044931,60]
[332836828,1721562493996,-1666.69,0.00044931,60]
[332836829,1721562494028,-1260.61,0.00044931,60]
[332836830,1721562494062,-500.0,0.00044931,60]
[332836831,1721562494099,-500.0,0.00044931,60]
[332836832,1721562494133,-500.0,0.00044931,60]
[332836833,1721562494168,-555.93,0.00044931,60]
[332836834,1721562494200,-500.0,0.00044931,60]
[332836835,1721562494232,-841.26,0.00044931,60]
[332836836,1721562494266,-556.17,0.00044931,60]
[332836837,1721562494300,-583.12,0.00044931,60]
[332836838,1721562494332,-611.71,0.00044931,60]
[332836839,1721562494365,-860.69,0.00044931,60]
[332836840,1721562494398,-500.0,0.00044931,60]
[332836841,1721562494431,-500.0,0.00044931,30]
[332836842,1721562494464,-744.21,0.00044931,60]
[332836843,1721562494498,-537.23,0.00044931,60]
[332836844,1721562494531,-500.0,0.00044931,60]
[332836845,1721562494564,-500.0,0.00044931,60]
[332836846,1721562494598,-500.0,0.00044931,60]
[332836847,1721562494631,-500.0,0.00044931,60]
[332836848,1721562494663,-907.17,0.00044931,60]
[332836849,1721562494695,-500.0,0.00044931,60]
[332836850,1721562494727,-500.0,0.00044931,60]
[332836851,1721562494759,-919.51,0.00044931,60]
[332836852,1721562494792,-500.0,0.00044931,60]
[332836853,1721562494824,-629.92671799,0.00044931,60]
[332836854,1721562494856,-500.0,0.00044931,60]
[332836855,1721562494890,-500.0,0.00044931,60]
[332836856,1721562494924,-500.0,0.00044931,60]
[332836857,1721562494960,-500.0,0.00044931,60]
[332836858,1721562494995,-500.0,0.00044931,60]
[332836859,1721562495029,-929.49,0.00044931,60]
[332836860,1721562495065,-500.0,0.00044931,60]
[332836861,1721562495100,-757.82,0.00044931,60]
[332836862,1721562495134,-500.0,0.00044931,60]
[332836863,1721562495169,-500.0,0.00044931,60]